Cogmind - Beta 16.1 @@@ ROGUE MODE // 2026.05.01 @ 19:49:55 Player: beans Result: Destroyed by Y-45 Defender with Beam Rifle Performance ------------- Evolutions (1) 500 Regions Visited (3) 600 Robots Destroyed (41) 205 Value Destroyed (770) 770 Prototype IDs (3) 60 Alien Tech Used (0) 0 Bonus (0) 0 TOTAL SCORE: 2135 Bonus ------- None Cogmind --------- Core Integrity 0/400 Matter 233/300 Energy 60/100 System Corruption 0% Temperature Cool (21) Movement Core (50) Location -9/Materials Parts ------- > --- POWER (1) -------- (None) > --- PROPULSION (2) --- (None) > --- UTILITY (4) ------ Targeting Computer Target Analyzer Armor Integrity Analyzer > --- WEAPON (2) ------- Heavy Particle Gun > --- INVENTORY (5) ---- Hacking Suite Heavy Particle Gun Heavy Particle Gun Peak State ------------ > --- POWER ------------ (None) > --- PROPULSION ------- Light Treads Light Treads > --- UTILITY ---------- Targeting Computer Target Analyzer Armor Integrity Analyzer Light Armor Plating > --- WEAPON ----------- Heavy Particle Gun Heavy Particle Gun > --- INVENTORY -------- Hacking Suite Heavy Particle Gun Heavy Assault Rifle Autogun [Rating: 20] Favorites ----------- Power Light Ion Engine Engine Light Ion Engine Propulsion Light Treads Treads Light Treads Leg Aluminum Leg Hover Unit Hover Unit Utility Targeting Computer Processor Targeting Computer Protection Light Armor Plating Weapon Improved EM Shotgun Energy Gun Improved EM Shotgun Ballistic Gun Autogun Build | -11 -10 -10 -9 ------- Run | Yrd Mat Min Mat Slots Evolved 2 | . . . 2 Power . | . . . . Propulsion . | . . . . Utility 2 | . . . 2 Weapon . | . . . . Parts Attached 25 | 4 2 1 18 Power 1 | . . . 1 Engine 1 | . . . 1 Core . | . . . . Reactor . | . . . . Propulsion 6 | 2 . . 4 Treads 2 | . . . 2 Leg 2 | 2 . . . Wheel . | . . . . Hover 2 | . . . 2 Flight . | . . . . Utility 6 | . 2 . 4 Device . | . . . . Storage . | . . . . Processor 3 | . 1 . 2 Hackware . | . . . . Protection 3 | . 1 . 2 Artifact . | . . . . Weapon 12 | 2 . 1 9 Energy Gun 8 | 2 . . 6 Energy Cannon . | . . . . Ballistic Gun 4 | . . 1 3 Ballistic Cannon . | . . . . Launcher . | . . . . Special Weapon . | . . . . Impact Weapon . | . . . . Slashing Weapon . | . . . . Piercing Weapon . | . . . . Special Melee Weapon . | . . . . Unidentified Prototypes 3 | . . . 3 Parts Lost 12 | . 1 3 8 Power 1 | . . . 1 Propulsion 4 | . . 2 2 Utility 2 | . . 1 1 Weapon 5 | . 1 . 4 Highest Loss Streak 8 | . 1 3 8 To Critical Strikes . | . . . . Average Backups 3 | 2 3 4 4 Power . | . . . . Propulsion . | 2 2 2 . Utility . | . . . . Weapon 2 | . 1 1 3 Tool/Special . | . . . . Unused Backups 2 | . . . 2 Power . | . . . . Propulsion . | . . . . Utility 1 | . . . 1 Weapon 1 | . . . 1 Tool/Special . | . . . . Average Slot Usage (%) 75 | . 56 48 85 Engine 2 | . . . 4 Treads 11 | . . . 17 Leg 7 | . 28 16 . Hover 1 | . . . 1 Processor 23 | . . 14 31 Protection 7 | . . 8 9 Energy Gun 15 | . 26 1 13 Ballistic Gun 5 | . . 7 6 Peak Build Rating 20 | 4 5 6 20 Average Rating 12 | 2 3 3 16 On Entrance 2 | . 4 5 1 Avg Prop Armor Cover (%) 25 | . . 25 . Naked Turns . | . . . . Heaviest Build 12 | 3 3 3 12 Greatest Support 40 | 20 20 20 40 Greatest Overweight (x) 3 | . . . 3 Average Overweight (x) . | . . . . Largest Inventory Capacity 5 | 5 5 5 5 Average Capacity 5 | 5 5 5 5 Most Carried 5 | 5 5 5 5 Average Carried 3 | 2 3 4 4 Final Capacity 5 | 5 5 5 5 Final Carried 5 | 3 3 5 3 Class Distribution -------------------- 92% | Mutant 7% | Scavenger-Mutant Dominant Class ---------------- Mutant | -10/Materials Mutant | -10/Mines Mutant | -9/Materials Resources | -11 -10 -10 -9 ----------- Run | Yrd Mat Min Mat Matter Collected 673 | 205 35 . 433 Remotely . | . . . . Salvage Created 1401 | . 177 . 1224 Parts 97 | . 7 . 90 Haulers Intercepted 5 | . 1 . 4 Recyclers Shooed . | . . . . Parts Field Recycled . | . . . . Retrieved Matter . | . . . . Parts Self-Destructed . | . . . . Prevented . | . . . . Parts Restored . | . . . . Kills | -11 -10 -10 -9 ------- Run | Yrd Mat Min Mat Combat Hostiles Destroyed 22 | . 2 . 20 Guns 18 | . 2 . 16 AOE 4 | . . . 4 Classes Destroyed 10 | . 3 . 7 Worker 5 | . . . 5 Builder 4 | . . . 4 Hauler 5 | . 1 . 4 Mechanic 1 | . . . 1 Operator 1 | . . . 1 Watcher 3 | . 1 . 2 Swarmer 7 | . . . 7 Grunt 9 | . 2 . 7 Duelist 1 | . . . 1 Sentry 5 | . . . 5 Best Kill Streak 7 | . 2 . 7 Combat Bots Only 7 | . 2 . 7 Max Kills in Single Turn 4 | . 1 . 4 Gunslinging . | . . . . Exploded 4 | . . . 4 Melee . | . . . . Uniques/NPCs Destroyed . | . . . . Combat | -11 -10 -10 -9 -------- Run | Yrd Mat Min Mat Hostile Shots Fired 225 | . 16 44 165 Missed 70 | . 5 19 46 Hits 155 | . 11 25 119 Melee 4 | . . 3 1 Projectile 151 | . 11 22 118 AOE 2 | . . 2 . Critical Strikes 2 | . . . 2 Damage Taken 1941 | . 144 445 1352 Core 636 | . 46 183 407 Absorbed by Shields . | . . . . Redirected to Shielding 56 | . . 17 39 Core Remaining (%) 54 | 100 . 8 . Volleys Fired 99 | . 17 . 82 Largest 2 | . 2 . 2 Hottest 110 | . 80 . 110 Shots Fired 179 | . 34 . 145 Gun 179 | . 34 . 145 Cannon . | . . . . Launcher . | . . . . Special . | . . . . Kinetic 73 | . . . 73 Thermal 53 | . 17 . 36 Explosive . | . . . . Electromagnetic 53 | . 17 . 36 Robot Hit Streak 11 | . 6 . 11 Robot Miss Streak 8 | . 8 . 3 Penetration Max . | . . . . Secondary Targets 3 | . 1 . 2 Max Gunslinging Chain 1 | . 1 . 1 Shots Hit Robots 124 | . 17 . 107 Core Hits 55 | . 7 . 48 Critical Kills 1 | . . . 1 Critical Parts Destroyed 2 | . . . 2 Critical Strikes 5 | . . . 5 Burn 1 | . . . 1 Destroy 4 | . . . 4 Melee Attacks . | . . . . Impact . | . . . . Slashing . | . . . . Piercing . | . . . . Sneak Attacks . | . . . . Combat Hostiles . | . . . . Follow-up Attacks . | . . . . Damage Inflicted 2231 | . 222 . 2009 Guns 1996 | . 222 . 1774 Cannons . | . . . . Explosions 235 | . . . 235 Melee . | . . . . Ramming . | . . . . Kinetic 800 | . . . 800 Thermal 795 | . 81 . 714 Explosive . | . . . . Electromagnetic 636 | . 141 . 495 Impact . | . . . . Slashing . | . . . . Piercing . | . . . . Highest Corruption 1 | . . 1 . Average Corruption 1 | . . 1 . Corruption Purged . | . . . . Corruption Blocked . | . . . . Overload Shots . | . . . . Overflow Damage 24 | . . . 24 Projectiles . | . . . . Explosions 24 | . . . 24 Melee . | . . . . Knockbacks . | . . . . Impact . | . . . . Kinetic . | . . . . Secondary . | . . . . Self-Inflicted Damage 7 | . . . 7 Shots 1 | . . . 1 Rammed . | . . . . Targets Rammed . | . . . . Kicked . | . . . . Crushed . | . . . . Highest Temperature 165 | . 87 . 165 Average Temperature 35 | . 28 . 38 Received Heat Transfer 483 | . 66 60 357 Siege Activations . | . . . . Martial Activations . | . . . . Shielding Activations . | . . . . Robots Disrupted . | . . . . Combat Hostiles . | . . . . Robots Corrupted . | . . . . Combat Hostiles . | . . . . Parts Fried 3 | . 2 . 1 Impact Corruptions . | . . . . Robots Melted . | . . . . Combat Hostiles . | . . . . Parts Melted 2 | . . . 2 Heat Transferred 1424 | . 175 . 1249 Parts Sabotaged . | . . . . Parts Stolen . | . . . . Parts Stripped . | . . . . Power Chain Reactions 3 | . . . 3 Alert | -11 -10 -10 -9 ------- Run | Yrd Mat Min Mat Maximum Alert Level 1 | . . . 1 Low Security (%) 95 | 100 100 100 93 Level 1 4 | . . . 6 Level 2 . | . . . . Level 3 . | . . . . Level 4 . | . . . . Level 5 . | . . . . High Security . | . . . . Max Security . | . . . . Peak Influence 268 | . 40 . 268 Initial 5 | . . . 5 Average 78 | . 12 . 117 Influence Increases 743 | . 80 15 648 Destroy 0b10 Robot/C 440 | . 40 . 400 Destroy 0b10 Robot/NC 95 | . 10 . 85 Destroy Leader 136 | . 14 . 122 Successful Hack 16 | . 16 . . Disable Machine 15 | . . . 15 Destroy Structure 11 | . . . 11 Lose Combat Pursuer 30 | . . 15 15 Influence Decreases 475 | . 80 . 395 Entered New Map 10 | . . . 10 Time Decay 381 | . 76 . 305 Lost Part 84 | . 4 . 80 Squads Dispatched 5 | . 1 . 4 Investigation . | . . . . Extermination . | . . . . Reinforcement 5 | . 1 . 4 Assault . | . . . . Garrison . | . . . . Intercept . | . . . . Searches Triggered . | . . . . Construction Impeded . | . . . . Haulers Reinforced . | . . . . Active Scanning Responses . | . . . . Cargo Convoy Interrupts . | . . . . Stealth | -11 -10 -10 -9 --------- Run | Yrd Mat Min Mat Distress Signals 3 | . . . 3 Communications Jammed . | . . . . Distress Signals . | . . . . Times Spotted 74 | . 5 33 36 Peak Tracking Total 20 | . 2 20 13 Tactical Retreats 5 | . . 4 1 Traps | -11 -10 -10 -9 ------- Run | Yrd Mat Min Mat Traps Triggered 1 | . 1 . . Indirectly . | . . . . Trap Hack Attempts . | . . . . Triggered . | . . . . Disarmed . | . . . . Reprogrammed . | . . . . Reused . | . . . . Traps Extracted . | . . . . Installed . | . . . . Triggered . | . . . . Machines | -11 -10 -10 -9 ---------- Run | Yrd Mat Min Mat Machines Disabled 2 | . . . 2 Max in Single Turn 1 | . . . 1 Machines Repaired . | . . . . Machines Dismantled . | . . . . Machines Sabotaged . | . . . . Overloaded Fab Kills . | . . . . Hacking | -11 -10 -10 -9 --------- Run | Yrd Mat Min Mat Machines Accessed 1 | . 1 . . Terminals 1 | . 1 . . Fabricators . | . . . . Repair Stations . | . . . . Recycling Units . | . . . . Scanalyzers . | . . . . Garrison Access . | . . . . Total Hacks 1 | . 1 . . Successful 1 | . 1 . . Failed . | . . . . Catastrophic . | . . . . Database Lockouts . | . . . . Manual . | . . . . Terminals 1 | . 1 . . Fabricators . | . . . . Repair Stations . | . . . . Recycling Units . | . . . . Scanalyzers . | . . . . Garrison Access . | . . . . Terminal Hacks 1 | . 1 . . Assault Status 1 | . 1 . . Fabricator Hacks . | . . . . Repair Station Hacks . | . . . . Recycling Unit Hacks . | . . . . Scanalyzer . | . . . . Garrison Access Hacks . | . . . . Unauthorized Hacks . | . . . . Terminals . | . . . . Fabricators . | . . . . Repair Stations . | . . . . Recycling Units . | . . . . Scanalyzers . | . . . . Garrison Access . | . . . . Data Cores Recovered . | . . . . Used . | . . . . Hacking Detections . | . . . . Full Trace Events . | . . . . Feedback Events . | . . . . Feedback Blocked . | . . . . Robot Schematics Acquired . | . . . . Robots Built . | . . . . Authchips . | . . . . Time . | . . . . Total Robot Build Rating . | . . . . Part Schematics Acquired . | . . . . Parts Built . | . . . . Authchips . | . . . . Time . | . . . . Total Part Build Rating . | . . . . Part Studies Acquired . | . . . . Parts Repaired . | . . . . Time . | . . . . Parts Recycled . | . . . . Recycled Matter . | . . . . Retrieved Matter . | . . . . Retrieved Components . | . . . . Parts Scanalyzed . | . . . . Part Schematics Acquired . | . . . . Parts Damaged . | . . . . Bothacking | -11 -10 -10 -9 ------------ Run | Yrd Mat Min Mat Used RIF Installer . | . . . . Robots Hacked . | . . . . Non-combat . | . . . . Combat . | . . . . Robot Hacks Applied . | . . . . Relay Couplers Released . | . . . . Fabnet Peak Effective % . | . . . . Robots Rewired . | . . . . Allies Hacked . | . . . . Hacks Repelled . | . . . . Allies | -11 -10 -10 -9 -------- Run | Yrd Mat Min Mat Total Allies . | . . . . Largest Group . | . . . . Highest-Rated Group . | . . . . Highest-Rated Ally . | . . . . Total Orders . | . . . . Ally Attacks . | . . . . Total Damage . | . . . . Kills . | . . . . Allies Corrupted . | . . . . Allies Melted . | . . . . Intel | -11 -10 -10 -9 ------- Run | Yrd Mat Min Mat Active Infowar (turns) . | . . . . Robot Analysis Total . | . . . . Derelict Logs Recovered 1 | . . 1 . Drone Launches . | . . . . Drone Recoveries . | . . . . Exploration | -11 -10 -10 -9 ------------- Run | Yrd Mat Min Mat Turns Passed 1082 | 71 224 90 697 Spaces Moved 671 | 69 137 153 312 Core 228 | 30 . 146 52 Treads 218 | . . . 218 Legs 183 | 39 137 7 . Wheels . | . . . . Hover 42 | . . . 42 Flight . | . . . . Fastest Speed 50 | 50 120 50 50 Average Speed 106 | 89 120 53 130 Slowest Speed 200 | 120 120 120 200 Overloaded Moves . | . . . . Propulsion Burnouts . | . . . . Robots Hopped . | . . . . Potential Cave-ins . | . . . . Cave-ins Triggered . | . . . . Exploration Rate (%) 25 | 3 28 38 33 Regions Visited 3 Branch Regions 1 Pre-discovered Areas 2 | . . 2 . Known Exits Taken . | . . . . Unknown Exits Taken 3 | 1 1 1 . Scrap Searched . | . . . . Spaces Dug . | . . . . Terrain Destroyed 10 | . . . 10 Melee . | . . . . Projectile . | . . . . AOE 10 | . . . 10 Terrain Rammed . | . . . . Walls Destroyed . | . . . . Machines Disabled . | . . . . Actions | -11 -10 -10 -9 --------- Run | Yrd Mat Min Mat Total 868 | 77 162 162 467 Wait 39 | . 5 6 28 Move 668 | 68 136 152 312 Hop . | . . . . Pick Up 17 | 5 2 1 9 Fast Attach 12 | 2 . . 10 Attach 15 | 2 2 1 10 Detach 5 | . . 2 3 Swap 3 | . . . 3 Drop 10 | . . . 10 Fire 99 | . 17 . 82 Melee . | . . . . Ram . | . . . . Kick . | . . . . Crush . | . . . . Escape Stasis . | . . . . Rewire . | . . . . Trap . | . . . . Miscellaneous . | . . . . Route ------- -11/Scrapyard -10/Materials -10/Mines -9/Materials (discovered 1 exit: [*Min]) History --------- Turn | Location | Event 4 | -11/Scrapyard | Discovered new exit (range 15) 72 | -11/Scrapyard | Entered Materials 269 | -10/Materials | Discovered new exit (range 8) 296 | -10/Materials | Entered Mines 297 | -10/Mines | Assembled infested the area 302 | -10/Mines | Assisted by a Guerilla fighting off Assembled 320 | -10/Mines | Build established: Mutant 348 | -10/Mines | Core integrity fell below 50% 352 | -10/Mines | Core integrity fell below 20% 375 | -10/Mines | Lost 3 parts (2n1u) 380 | -10/Mines | Learned location of Storage (-7) 380 | -10/Mines | Discovered new exit (range 10) 386 | -10/Mines | Entered Materials 386 | -9/Materials | Evolved 2 slots: Utility x2 493 | -9/Materials | Discovered new exit (range 16) 1056 | -9/Materials | Core integrity fell below 50% 1065 | -9/Materials | Destroyed 7 combat bots 1067 | -9/Materials | Core integrity fell below 20% 1083 | -9/Materials | Destroyed by Y-45 Defender with Beam Rifle Last Messages --------------- Acquired Shotgun. Y-45 Defender suffers critical hit (Destroy). U-05 Engineer lays Concrete. S-10 Pest destroyed. U-05 Engineer lays Concrete. Core Shielding destroyed. U-05 Engineer lays Concrete. Autogun destroyed. U-05 Engineer lays Concrete. Y-45 Defender suffers critical hit (Destroy). Destroyed Lgt. Treads. Y-45 Defender destroyed. S-10 Pest destroyed. S-10 Pest suffers critical hit (Destroy). Destroyed Lgt. Assault Rifle. Critical hit (Burn: +37). Shotgun destroyed. K-01 Serf collects debris. Y-45 Defender destroyed. K-01 Serf collects debris. Map ----- +----------------------------------------------------+ | ?????????????????????????????????????????????????? | | ?????????????????????????????????????????????????? | | ?????????????????????????????????????????????????? | | ?????????????????????????????????????????????????? | | ?????????????????????????????????????????????????? | | ?????????????????????????????????????????????????? | | ?????????????????????????????????????????????????? | | ?????????????????????????????????????????????????? | | ?????????????? ????????????????????????????????? | | ????????????? ???????????????????????????????? | | ????????????? ???????????????????????????????? | | ????????????? ???????????????????????????????? | | ????????????? ???????????????????????????????? | | ?????????????# #???????????????????????????????? | | ?????????????# #???????????????????????????????? | | ?????????????# #???????????????????????????????? | | ?????????????# #???????????????????????????????? | | ?????????????#% ##########??????????????????????? | | ????????????##* # [ #??????????????????????? | | ????????????#"%[ # T #??????????????????????? | | ????????????#"%= # #??????????????????????? | | ????????????#;%= # ]] #?????????????????###### | | ?????????????#=[*#k[]] #?????????????????# = | | ?????????????#= *g%k] #?????????????????# """ | | ?????????????# #Y! [ =##????????????????# """ | | ?????????????# # @%#????????????????# """ | | ?? ########### =*# % [#####?????????????# | | =[############"#####?????????# """ | | %%|##########"" #?????????# """ | | =!=%!* !%%%= #?????????# """ | | ? ############/###########""[ #####?????# | | ????????????? ? #?????### # ^ ?????##+### | | ?????????????"" ""? #???????# # ""??????# | | ????????????""" ""? #???????## ## "???????# | | ????????????""" """ #????????# ##[ "???????# " | | ?????????????? #????????# ## ????????# " | | ?????????????? ########## ## ????????# " | | #+#+##############+## ![[[## = ##+##########=%* | | != %[ % %[==% ![[ = | | % %[ < = = ! */ ] ] | | %=*%* % ! %= = []= | | *###+#####+## ## ##+### ### | | ??? ??? %?# "! !" ## #!= # #?### | | ???? ?? ?#""!"!""## # " #]][ !#???? | | ????? """ ?########## # T #]][ !!#???? | | ?????? """""???????????# # " ########???? | | #??????? """""???????????# # #??????????? | | ?????????"""""???????????# # #??????????? | | ?????????? ??" ???????????+ # #??????????? | | %??????????? ???????????????# + #??????????? | +----------------------------------------------------+ Best States ------------- Heat Dissipation 28 Energy Generation 10 Energy Capacity 125 Matter Stores 300 Matter Capacity 300 Sight Range 16 Terrain Scan Density 10 Armor Coverage 150 Core Shielding 20 Propulsion Shielding 33 Evasion (%) 55 Targeting Accuracy 5 Target Analysis 5 Armor Integrity Analysis 30 Recoil Reduction 2 Item Schematics ----------------- None Robot Schematics ------------------ None Fabricated ------------ Nothing Repaired ---------- Nothing Studied --------- None Alien Tech Used ----------------- None Achievements -------------- None Challenges ------------ None Game ------ Seed FissionPhaseSlayer Manual? 0 Play Time 00:11:57 Cumulative 280.8 hours Start 2026.05.01 @ 18:48:00 End 2026.05.01 @ 19:49:55 Sessions 1 Manual Loads 0 Difficulty Rogue Special Mode None Game No. 739 Rogue 737 Adventurer 2 Explorer 0 Win Type - Total 0 Types 0/0/0/0/0/0/0/0/0/0 Lore% 68 Gallery% 64 Achievement% 45 Wizard Run 0 Options --------- Layout 2 ASCII 0 Keyboard 0 Movement Mouse Keybinds 0 Fullscreen 1 Font 24/Smallcaps Map View 50x44 Zoom Use 0% Tactical HUD 0 Map Filters NONE Filters NONE Steam 1 RUN: cd7e6445-dc2f-440f-8da5-3403055108da